bitfinex-derivatives/quotes_ETHF0:USTF0_20230401
["timestamp","ask_amount","ask_price","bid_price","bid_amount"]
[1680365427410,4.06902067,1821.8,1821.5,0.82]
[1680365429007,0.86122067,1821.8,1821.7,0.823]
[1680365432408,0.86122067,1821.9,1821.7,0.823]
[1680365432915,0.86122067,1821.9,1821.7,6.87771396]
[1680365433111,1.77822067,1822.0,1821.8,1.0]
[1680365433513,1.77822067,1822.0,1821.9,5.74573478]
[1680365433916,0.96122067,1822.0,1821.9,6.56273478]
[1680365437224,0.96122067,1822.0,1821.9,6.56873478]
[1680365439916,0.1,1822.0,1821.9,6.56873478]
[1680365440120,0.1,1822.0,1821.9,9.81213858]
[1680365442627,0.1,1822.0,1821.9,9.81013858]
[1680365460239,0.86122067,1822.2,1821.9,11.45713858]
[1680365460444,0.86122067,1822.4,1822.1,4.8558]
[1680365460641,0.86122067,1822.5,1822.3,1.639]
[1680365460840,1.14829422,1822.5,1822.4,0.817]
[1680365461042,4.35609422,1822.6,1822.4,0.817]
[1680365461242,4.35680407,1822.6,1822.5,0.824]
[1680365463143,5.4694236,1822.6,1822.2,0.04846663]
[1680365463345,0.86175037,1822.3,1822.1,0.819]
[1680365463745,1.86175037,1822.3,1822.1,0.819]
[1680365463944,0.86175037,1822.3,1822.1,0.819]
[1680365464349,0.86175037,1822.4,1822.1,0.819]
[1680365464549,0.86175037,1822.3,1822.1,0.819]
[1680365466944,0.86175037,1822.3,1822.2,0.819]
[1680365467346,0.86175037,1822.3,1822.1,1.09]
[1680365467948,0.86175037,1822.4,1822.1,1.09]
[1680365468251,0.86175037,1822.4,1822.2,5.71757636]
[1680365468451,0.86175037,1822.4,1822.2,6.71757636]
[1680365470555,0.86175037,1822.4,1822.2,5.71757636]
[1680365471651,0.86175037,1822.3,1822.2,5.71757636]
[1680365472954,0.86175037,1822.4,1822.2,5.71757636]
[1680365473557,0.86175037,1822.3,1822.2,5.71757636]
[1680365475352,0.86175037,1822.5,1822.2,7.80857636]
[1680365475553,0.86175037,1822.5,1822.4,1.097]
[1680365475852,0.86175037,1822.5,1822.4,6.93702979]
[1680365476049,4.3568005,1822.5,1822.4,5.84002979]
[1680365476249,4.3568005,1822.5,1822.2,0.04041263]
[1680365476446,1.86182128,1822.4,1822.2,0.04041263]
[1680365476645,0.86182128,1822.4,1822.2,0.04041263]
[1680365477053,0.86182128,1822.4,1822.3,7.44230308]
[1680365479959,0.86182128,1822.4,1822.3,7.48468608]
[1680365498470,0.86182128,1822.4,1822.3,10.69248608]
[1680365505679,1.1490005,1822.5,1822.3,10.69248608]
[1680365505975,0.86302265,1822.4,1822.3,10.69248608]
[1680365506171,0.86302265,1822.5,1822.3,11.84168849]
[1680365506381,0.86302265,1822.5,1822.4,0.8603626]
[1680365506566,0.86302265,1822.5,1822.4,1.8603626]
[1680365506766,0.86302265,1822.5,1822.4,7.61064362]
[1680365507376,0.86302265,1822.5,1822.4,6.75028102]
[1680365507579,0.86302265,1822.5,1822.4,5.75028102]
[1680365508087,4.3568005,1822.5,1822.3,1.9533626]
[1680365508379,4.3568005,1822.5,1822.4,0.04219125]
[1680365508380,3.2078,1822.5,1822.4,0.04219125]
[1680365508576,3.88828957,1822.5,1822.3,1.093]
[1680365508778,1.43830879,1822.4,1822.2,1.097]
[1680365508979,1.15063076,1822.3,1822.2,1.097]
[1680365509773,4.35843076,1822.3,1822.2,1.097]
[1680365513389,1.15063076,1822.3,1822.2,1.097]
[1680365517081,1.15063076,1822.3,1822.2,2.097]
[1680365517690,1.15063076,1822.3,1822.2,7.92258631]
[1680365519598,1.15063076,1822.3,1822.2,6.92258631]
[1680365522494,0.86296042,1822.3,1822.2,6.92158631]
[1680365522902,0.86296042,1822.3,1822.2,7.92158631]
[1680365525506,0.86296042,1822.3,1822.2,6.92158631]
[1680365525803,1.15063076,1822.4,1822.2,7.92158631]
[1680365526004,1.15063076,1822.4,1822.2,6.82558631]
[1680365526204,1.15063076,1822.4,1822.3,2.091]
[1680365526506,1.15063076,1822.4,1822.3,8.26581764]
[1680365527100,1.15063076,1822.4,1822.3,7.26581764]
[1680365528309,1.15063076,1822.5,1822.3,7.26581764]
[1680365528607,1.15063076,1822.5,1822.4,1.0]
[1680365529402,1.15063076,1822.5,1822.3,8.26581764]
[1680365529804,1.15063076,1822.4,1822.3,8.26581764]
[1680365532108,1.15063076,1822.4,1822.3,7.26581764]
[1680365532606,1.15063076,1822.4,1822.3,6.99681764]
[1680365537211,1.15063076,1822.5,1822.3,6.99681764]
[1680365537404,1.1504956,1822.5,1822.4,0.823]
[1680365539008,0.86277403,1822.5,1822.4,7.02415734]
[1680365539208,0.86275745,1822.5,1822.4,7.02415734]
[1680365540806,0.86275745,1822.5,1822.4,8.02415734]
[1680365544618,0.57498321,1822.5,1822.4,9.69951994]
[1680365546207,0.86275745,1822.6,1822.5,1.0]
[1680365546415,0.57484036,1822.7,1822.6,1.823]
[1680365546614,0.57484036,1822.7,1822.6,3.463]
[1680365546815,0.86365639,1822.8,1822.6,4.09819582]
[1680365547014,0.57484036,1822.8,1822.7,5.8468]
[1680365547407,0.57484036,1822.8,1822.7,11.22829456]
[1680365548018,0.57484036,1822.8,1822.7,10.22829456]
[1680365548821,0.57484036,1822.9,1822.7,10.22829456]
[1680365549118,0.57484036,1822.9,1822.8,2.097]
[1680365551520,0.57484036,1822.9,1822.8,1.097]
[1680365552116,0.57484036,1822.9,1822.8,2.097]
[1680365552423,0.57484036,1822.9,1822.8,1.097]
[1680365553015,0.57484036,1822.9,1822.8,2.097]
[1680365553215,1.26921744,1823.0,1822.8,2.097]
[1680365553416,0.69437708,1823.0,1822.9,1.087]
[1680365553720,1.26810169,1823.0,1822.9,1.087]
[1680365554723,1.26798898,1823.0,1822.9,1.087]
[1680365554924,1.26798898,1823.0,1822.9,1.12513355]
[1680365557321,1.26798898,1823.0,1822.9,4.33293355]
[1680365557624,1.26798898,1823.0,1822.9,1.12513355]
[1680365560132,1.26798898,1823.0,1822.9,7.43069106]
[1680365561630,3.90217708,1823.0,1822.9,7.43069106]
[1680365562230,4.47572704,1823.0,1822.9,7.43069106]
[1680365562531,3.90217708,1823.0,1822.9,7.43069106]
[1680365563235,7.14967268,1823.0,1822.9,0.03813355]
[1680365563536,7.14967268,1823.0,1822.6,1.097]
[1680365563731,3.78143132,1822.8,1822.6,1.097]
[1680365563933,3.78143132,1822.8,1822.7,0.04432781]
[1680365564124,0.57363132,1822.8,1822.7,0.04432781]
[1680365564332,0.57363132,1822.8,1822.6,1.097]
[1680365565237,0.57363132,1822.8,1822.7,1.097]
[1680365565631,0.57363132,1822.8,1822.7,7.13625064]
[1680365565834,0.57363132,1822.8,1822.7,1.097]
[1680365566335,0.57363132,1822.9,1822.7,1.097]
[1680365566535,0.57363132,1822.9,1822.8,1.096]
[1680365567538,0.57363132,1822.9,1822.8,6.96093672]
[1680365570032,0.57363132,1822.9,1822.8,7.00524652]
[1680365570234,2.84487268,1823.0,1822.8,6.99624652]
[1680365570436,3.2078,1822.9,1822.8,1.1313098]
[1680365570637,4.2078,1822.9,1822.8,1.1313098]
[1680365572029,3.2078,1822.9,1822.8,1.1313098]
[1680365573941,4.2078,1822.9,1822.8,1.1313098]
[1680365574945,3.2078,1822.9,1822.8,1.1313098]
[1680365576344,1.84487268,1823.0,1822.8,1.1313098]
[1680365576937,1.84487268,1823.0,1822.8,0.0443098]
[1680365577143,1.84487268,1823.0,1822.8,1.1403098]
[1680365577335,1.84487268,1823.0,1822.8,1.096]
[1680365578643,1.84487268,1823.0,1822.9,1.097]
[1680365579142,0.69437708,1823.0,1822.9,1.097]
[1680365582849,1.84487268,1823.0,1822.9,1.097]
[1680365584948,1.84487268,1823.0,1822.9,1.14126489]
[1680365588751,3.13268587,1823.0,1822.9,1.14126489]
[1680365588955,1.69437708,1823.0,1822.9,0.04426489]
[1680365589352,1.69437708,1823.0,1822.8,1.097]
[1680365589556,1.1503728,1822.9,1822.8,1.097]
[1680365592958,2.1503728,1822.9,1822.8,1.097]
[1680365594357,1.1503728,1822.9,1822.8,1.097]
[1680365595559,2.1503728,1822.9,1822.8,1.097]
[1680365595963,1.1503728,1822.9,1822.8,1.097]
[1680365596555,0.72526488,1823.0,1822.9,1.0]
[1680365596756,0.15,1823.0,1822.9,6.4008]
[1680365596954,0.72526382,1823.0,1822.9,13.73207376]
[1680365597151,0.15,1823.0,1822.9,11.5851351]
[1680365597761,0.15,1823.0,1822.9,12.44539286]
[1680365598260,0.72507061,1823.0,1822.9,12.44539286]
[1680365599052,1.43830879,1823.3,1822.9,12.44539286]
[1680365599360,2.11849136,1823.3,1823.2,1.087]
[1680365600059,2.11849136,1823.3,1823.2,1.13325751]
[1680365600259,1.43830879,1823.3,1823.2,1.13325751]
[1680365602060,2.43830879,1823.4,1823.2,1.13325751]
[1680365603556,5.64610879,1823.4,1823.2,1.13325751]
[1680365607365,5.64610879,1823.4,1823.2,0.86925751]
[1680365608065,2.43830879,1823.4,1823.2,0.86925751]
[1680365608366,2.43830879,1823.4,1823.2,0.823]
[1680365609056,2.43830879,1823.4,1823.3,0.04623059]
[1680365609258,3.1184731,1823.4,1823.2,0.823]
[1680365609464,2.43830879,1823.4,1823.2,0.823]
[1680365609863,2.43830879,1823.4,1823.3,0.04622834]
[1680365610058,3.11847935,1823.4,1823.3,0.04622834]
[1680365610663,3.11847935,1823.4,1823.2,0.823]
[1680365610854,2.43830879,1823.4,1823.2,0.823]
[1680365612165,2.43830879,1823.4,1823.3,0.04622161]
[1680365612463,3.118481,1823.4,1823.2,0.823]
[1680365612664,2.43830879,1823.4,1823.2,0.823]
[1680365612863,2.43830879,1823.4,1823.3,0.04621924]
[1680365613066,6.32627924,1823.4,1823.3,0.04621924]
[1680365613261,6.32627924,1823.4,1823.2,0.823]
[1680365613460,5.64610879,1823.4,1823.2,0.823]
[1680365613659,5.64610879,1823.4,1823.3,0.04621701]
[1680365613859,6.32628009,1823.4,1823.3,0.04621701]
[1680365614059,6.32628009,1823.4,1823.2,0.823]
[1680365614261,5.64610879,1823.4,1823.3,0.04621488]
[1680365614566,6.32627973,1823.4,1823.2,0.823]
[1680365614760,5.64610879,1823.4,1823.2,0.823]
[1680365614960,5.64610879,1823.4,1823.3,0.04621265]
[1680365615160,6.32627989,1823.4,1823.3,0.04621265]
[1680365615359,6.32627989,1823.4,1823.2,0.823]
[1680365615674,5.64610879,1823.4,1823.2,0.823]
[1680365615965,5.64610879,1823.4,1823.3,0.04621028]
[1680365616163,6.32627998,1823.4,1823.3,0.04621028]
[1680365616362,6.32627998,1823.4,1823.2,0.823]
[1680365616564,5.64610879,1823.4,1823.3,0.04620817]
[1680365616765,5.32627952,1823.4,1823.3,0.04620817]
[1680365617164,5.32627952,1823.4,1823.2,0.823]
[1680365617365,4.64610879,1823.4,1823.2,0.823]
[1680365617564,4.64610879,1823.4,1823.3,0.04620517]
[1680365617869,5.32627927,1823.4,1823.2,0.823]
[1680365618168,4.64610879,1823.4,1823.2,0.823]
[1680365618367,4.64610879,1823.4,1823.3,0.04620281]
[1680365618564,5.32627958,1823.4,1823.3,0.04620281]
[1680365618764,5.32627958,1823.4,1823.2,0.823]
[1680365618970,4.64610879,1823.4,1823.3,0.04620068]
[1680365619169,5.32627928,1823.4,1823.3,0.04620068]
[1680365619368,2.11847928,1823.4,1823.2,0.823]
[1680365619766,2.11847928,1823.4,1823.3,0.04619844]
[1680365619976,1.43830879,1823.4,1823.2,0.823]
[1680365620372,1.43830879,1823.4,1823.3,0.04619681]
[1680365620676,2.11845895,1823.4,1823.3,0.04619681]
[1680365620878,1.43830879,1823.4,1823.2,0.823]
[1680365621170,2.11845816,1823.4,1823.2,1.823]
[1680365621377,1.43830879,1823.4,1823.3,0.86919396]
[1680365621668,2.11846194,1823.4,1823.3,0.86919396]
[1680365621865,2.11846194,1823.4,1823.3,0.823]
[1680365622268,1.43830879,1823.4,1823.3,0.823]
[1680365622775,2.1184554,1823.4,1823.3,0.823]
[1680365623077,1.43830879,1823.4,1823.3,0.823]
[1680365623966,1.43830879,1823.4,1823.3,0.86777701]
[1680365624670,2.11845367,1823.4,1823.3,0.86777701]
[1680365624873,2.11845367,1823.4,1823.3,0.823]
[1680365625574,5.32625367,1823.4,1823.3,0.823]
[1680365626270,6.32625367,1823.4,1823.3,0.823]
[1680365626978,6.32625367,1823.4,1823.1,4.0248]
[1680365626979,6.32625367,1823.4,1823.2,0.823]
[1680365627178,1.14931436,1823.3,1823.2,0.823]
[1680365630079,1.14931436,1823.3,1823.2,0.86775908]
[1680365632979,1.14931436,1823.4,1823.2,0.86775908]
[1680365633175,1.14931436,1823.4,1823.3,1.64]
[1680365635079,1.32775548,1823.7,1823.3,4.8478]
[1680365635380,1.0,1823.5,1823.4,0.823]
[1680365635680,1.6801175,1823.5,1823.4,0.823]
[1680365635885,1.6801175,1823.5,1823.3,0.817]
[1680365636183,1.0,1823.5,1823.3,0.817]
[1680365639275,1.55924398,1823.5,1823.3,0.817]
[1680365640082,0.68013374,1823.4,1823.3,0.817]
[1680365640781,1.55924398,1823.5,1823.3,0.817]
[1680365641083,0.55924398,1823.5,1823.3,0.817]
[1680365641283,0.822,1823.6,1823.3,0.817]
[1680365641480,13.84067417,1823.5,1823.3,0.817]
[1680365641684,0.822,1823.6,1823.3,0.817]
[1680365641982,13.84067853,1823.5,1823.3,0.817]
[1680365642280,0.68013288,1823.4,1823.3,0.817]
[1680365642983,0.68013288,1823.5,1823.3,0.817]
[1680365644085,0.68013288,1823.5,1823.3,4.0248]
[1680365645182,0.68013288,1823.5,1823.4,0.04690775]
[1680365645384,13.84055129,1823.5,1823.4,0.04690775]
[1680365645584,13.84055129,1823.5,1823.3,4.0248]
[1680365645888,0.68013288,1823.4,1823.3,4.0248]
[1680365646379,0.68013288,1823.5,1823.3,4.0248]
[1680365646574,0.68013288,1823.4,1823.3,4.0248]
[1680365646775,0.68013288,1823.4,1823.3,4.8408]
[1680365646980,0.68012124,1823.4,1823.3,4.0238]
[1680365647182,0.68011843,1823.4,1823.3,4.0238]
[1680365647386,0.68011843,1823.6,1823.3,4.0238]
[1680365647686,13.84039297,1823.5,1823.4,0.815]
[1680365651588,14.40155693,1823.5,1823.4,0.815]
[1680365654794,14.40155693,1823.5,1823.4,0.86506911]
[1680365656712,15.83944929,1823.5,1823.4,0.86506911]
[1680365656991,15.83916502,1823.5,1823.4,0.86606911]
[1680365657197,2.67917525,1823.5,1823.4,0.86606911]
[1680365657394,15.83919969,1823.5,1823.4,0.86606911]
[1680365658099,2.67917525,1823.5,1823.4,0.86606911]
[1680365658299,15.83916427,1823.5,1823.4,0.86606911]
[1680365658799,2.67917525,1823.5,1823.4,0.86606911]
[1680365658996,1.24128289,1823.5,1823.4,0.86606911]
[1680365659196,14.40127516,1823.5,1823.4,0.86606911]
[1680365659391,15.27810341,1823.5,1823.4,0.86606911]
[1680365659591,2.11801948,1823.5,1823.4,0.86606911]
[1680365659793,1.43790055,1823.5,1823.4,1.86606911]
[1680365660090,0.68011893,1823.5,1823.4,0.86606911]
[1680365660296,2.11808319,1823.5,1823.4,0.86606911]
[1680365660698,15.27806388,1823.5,1823.4,0.86606911]
[1680365660897,2.11808319,1823.5,1823.4,0.86606911]
[1680365661800,14.59796799,1823.5,1823.4,0.86606911]
[1680365662095,13.84011321,1823.5,1823.4,0.86606911]
[1680365667404,2.11828583,1823.5,1823.4,0.86606911]
[1680365667592,13.83994102,1823.5,1823.4,0.86606911]
[1680365668401,15.2781909,1823.5,1823.4,0.86606911]
[1680365668702,13.83994102,1823.5,1823.4,0.86606911]
[1680365670604,2.11837776,1823.5,1823.4,0.86606911]
[1680365671002,1.43825883,1823.5,1823.4,0.86606911]
[1680365671306,1.43825883,1823.5,1823.4,1.86606911]
[1680365671607,1.43825883,1823.5,1823.4,0.86606911]
[1680365672406,1.43825883,1823.5,1823.4,1.86606911]
[1680365676205,1.43825883,1823.5,1823.4,0.86606911]
[1680365678603,2.11833507,1823.5,1823.4,0.86606911]
[1680365678907,1.43825883,1823.5,1823.4,1.86606911]
[1680365679109,1.43825883,1823.5,1823.4,0.86606911]
[1680365679409,1.43825883,1823.5,1823.4,1.86606911]
[1680365679610,1.43825883,1823.6,1823.4,1.86606911]
[1680365679800,1.43825883,1823.6,1823.5,0.817]
[1680365680002,1.43825883,1823.6,1823.5,4.0248]
[1680365680211,2.11832235,1823.6,1823.5,4.07479403]
[1680365680405,1.43825883,1823.6,1823.5,4.07479403]
[1680365680709,14.59754273,1823.6,1823.5,4.07479403]
[1680365680913,2.11832235,1823.6,1823.5,4.07479403]
[1680365681508,1.43825883,1823.6,1823.5,4.07479403]
[1680365684212,2.11832235,1823.6,1823.5,4.07479403]
[1680365684708,1.43825883,1823.6,1823.5,4.07479403]
[1680365691112,1.43825883,1823.7,1823.5,4.07479403]
[1680365691326,1.0,1823.8,1823.6,0.815]
[1680365691616,13.83878666,1823.7,1823.6,0.815]
[1680365691818,15.27619897,1823.7,1823.6,0.815]
[1680365692018,13.83865159,1823.7,1823.6,0.815]
[1680365701525,2.11755632,1823.7,1823.6,0.815]
[1680365701720,2.1175491,1823.7,1823.6,0.815]
[1680365702426,2.1175491,1823.7,1823.6,0.81173555]
[1680365702622,1.43750918,1823.7,1823.6,1.81173555]
[1680365702821,2.1175491,1823.7,1823.6,1.81173555]
[1680365703031,1.43750918,1823.7,1823.6,1.81173555]
[1680365703919,1.43750918,1823.7,1823.6,0.81173555]
[1680365704725,1.43750918,1823.7,1823.6,1.81173555]
[1680365705821,1.43750918,1823.8,1823.6,2.646]
[1680365706126,1.43750918,1823.8,1823.7,0.82]
[1680365706317,13.83812654,1823.8,1823.7,0.88481277]
[1680365706719,15.27541847,1823.8,1823.7,0.88481277]
[1680365706921,15.2754215,1823.8,1823.7,0.88481277]
[1680365707628,13.83807665,1823.8,1823.7,0.88481277]
[1680365707925,2.1172168,1823.8,1823.7,0.88481277]
[1680365709422,1.43720957,1823.8,1823.7,0.88481277]
[1680365710330,2.1172168,1823.8,1823.7,0.88481277]
[1680365711126,1.43720957,1823.8,1823.7,0.88481277]
[1680365711833,2.1172168,1823.8,1823.7,0.88481277]
[1680365712033,1.43720957,1823.8,1823.7,0.88481277]
[1680365712331,2.1172168,1823.8,1823.7,0.88481277]
[1680365713027,15.27532146,1823.8,1823.7,0.88481277]
[1680365713533,13.8380448,1823.8,1823.7,0.88481277]
[1680365714635,13.8380448,1823.8,1823.7,0.06481277]
[1680365715031,13.8380448,1823.8,1823.6,0.818]
[1680365715232,3.11745192,1823.7,1823.6,0.818]
[1680365715635,2.11745192,1823.7,1823.6,0.818]
[1680365715929,2.11745192,1823.7,1823.6,1.69706401]
[1680365716129,1.43744469,1823.7,1823.6,1.69706401]
[1680365716331,1.43744469,1823.8,1823.6,1.69706401]
[1680365716635,1.43744469,1823.8,1823.7,5.0308]
[1680365717137,0.67999239,1823.8,1823.7,5.0308]
[1680365717635,13.83788666,1823.8,1823.7,5.0308]
[1680365717835,15.27541651,1823.8,1823.7,4.0308]
[1680365718030,15.27542561,1823.8,1823.7,4.0308]
[1680365718234,15.27536863,1823.8,1823.7,4.0308]
[1680365718443,2.11746526,1823.8,1823.7,4.0308]
[1680365718729,1.43747287,1823.8,1823.7,0.823]
[1680365720745,1.43747287,1823.8,1823.7,6.74363495]
[1680365722531,2.58729724,1823.9,1823.8,0.823]
[1680365722833,1.14982437,1823.9,1823.8,3.469]
[1680365723033,1.14982437,1823.9,1823.8,9.17753972]
[1680365726940,1.24982437,1824.0,1823.8,9.17753972]
[1680365727142,1.24982437,1824.0,1823.9,5.0258]
[1680365727746,1.24982437,1824.0,1823.9,10.96167603]
[1680365729136,1.24982437,1824.0,1823.9,11.77867603]
[1680365729341,0.1,1824.0,1823.9,11.77867603]
[1680365729543,0.96154955,1824.0,1823.9,11.77867603]
[1680365730337,0.73344955,1824.0,1823.9,11.77867603]
[1680365730841,0.57413756,1824.0,1823.9,11.77867603]
[1680365731043,0.57413756,1824.0,1823.9,11.85198471]
[1680365731342,1.14982437,1824.3,1824.0,1.074]
[1680365731650,1.14982437,1824.3,1824.2,1.823]
[1680365732143,1.14982437,1824.4,1824.3,0.823]
[1680365732343,1.14982437,1824.4,1824.3,0.817]
[1680365732549,1.14982437,1824.4,1824.3,0.89102787]
[1680365732951,2.14982437,1824.4,1824.3,0.89102787]
[1680365733649,2.14982437,1824.4,1824.3,0.96432842]
[1680365734658,1.14982437,1824.4,1824.3,0.96432842]
[1680365736456,1.5357012,1824.5,1824.3,0.96432842]
[1680365736457,1.14982437,1824.5,1824.3,0.96432842]
[1680365737562,2.14982437,1824.5,1824.3,0.96432842]
[1680365738461,1.0,1824.4,1824.3,0.96432842]
[1680365738754,2.14982437,1824.4,1824.3,0.96432842]
[1680365739060,1.0,1824.5,1824.3,0.96432842]
[1680365739061,2.14982437,1824.5,1824.3,0.96432842]
[1680365741665,2.14982437,1824.5,1824.3,0.89102787]
[1680365743064,2.14982437,1824.5,1824.4,0.07441427]
[1680365743263,2.14982437,1824.5,1824.3,0.89102787]
[1680365743464,2.14982437,1824.5,1824.4,0.0744128]
[1680365743661,2.14982437,1824.5,1824.3,0.89102787]
[1680365744065,1.14982437,1824.5,1824.4,0.07441145]
[1680365744459,1.14982437,1824.5,1824.3,0.89102787]
[1680365744663,1.14982437,1824.5,1824.4,0.07440924]
[1680365744966,1.14982437,1824.5,1824.3,0.89102787]
[1680365745168,2.14982437,1824.5,1824.4,0.07440771]
[1680365745464,1.14982437,1824.5,1824.3,0.89102787]
[1680365745667,2.14982437,1824.5,1824.4,0.0791778]
[1680365746167,2.14982437,1824.5,1824.3,0.89102787]
[1680365746368,2.14982437,1824.5,1824.4,0.07917573]
[1680365746667,2.14982437,1824.5,1824.3,0.89102787]
[1680365746968,2.14982437,1824.5,1824.4,0.07917423]
[1680365747465,2.14982437,1824.5,1824.3,0.07402787]
[1680365747666,2.14982437,1824.5,1824.4,0.07917195]
[1680365747969,2.14982437,1824.5,1824.2,0.818]
[1680365748172,1.0,1824.4,1824.2,0.818]
[1680365748463,1.822,1824.4,1824.0,0.823]
[1680365749163,1.822,1824.4,1824.1,5.91327157]
[1680365749367,6.17962437,1824.4,1824.0,0.823]
[1680365749566,0.823,1824.2,1823.9,5.64069917]
[1680365750367,1.823,1824.2,1824.0,5.87896984]
[1680365751879,0.823,1824.2,1824.0,5.87896984]
[1680365752267,1.823,1824.2,1824.0,5.87896984]
[1680365752668,1.823,1824.2,1823.9,4.0308]
[1680365752865,2.97282437,1824.2,1823.9,0.823]
[1680365753772,1.0,1824.1,1823.9,0.823]
[1680365753965,6.18062437,1824.2,1823.9,0.823]
[1680365754664,2.97282437,1824.2,1823.9,0.823]
[1680365756765,6.18062437,1824.2,1823.9,0.823]
[1680365756972,0.816,1824.0,1823.7,0.815]
[1680365757371,1.0,1823.9,1823.7,0.815]
[1680365757772,1.0,1823.9,1823.8,5.95817644]
[1680365757971,6.17362437,1824.0,1823.7,0.815]
[1680365758171,1.0,1823.9,1823.7,0.815]
[1680365759472,0.823,1823.8,1823.4,0.823]
[1680365760073,0.823,1823.8,1823.5,6.33332669]
[1680365760577,4.0308,1823.8,1823.5,6.33332669]
[1680365761082,4.0308,1823.8,1823.6,0.04223636]
[1680365761375,4.0298,1823.8,1823.6,0.04223636]
[1680365761779,1.0,1823.7,1823.6,0.04223636]
[1680365762380,5.17962437,1823.8,1823.6,0.04223636]
[1680365766977,5.17762437,1823.8,1823.6,0.04223636]
[1680365769284,1.0,1823.7,1823.6,0.04223636]
[1680365770682,5.17762437,1823.8,1823.6,0.04223636]
[1680365770882,1.0,1823.7,1823.6,0.04223636]
[1680365772388,5.17762437,1823.8,1823.6,0.04223636]
[1680365772788,1.0,1823.7,1823.6,0.04223636]
[1680365773387,5.17762437,1823.8,1823.6,0.04223636]
[1680365773888,4.0278,1823.8,1823.6,0.04223636]
[1680365777092,1.14982437,1824.0,1823.7,4.0228]
[1680365777293,1.70325198,1824.1,1823.7,4.0228]
[1680365777496,1.97182437,1824.1,1823.8,0.05600523]
[1680365778196,5.17962437,1824.1,1823.8,0.05600523]
[1680365778692,1.14982437,1824.0,1823.8,0.05600523]
[1680365783600,0.823,1823.9,1823.8,0.05600523]
[1680365784902,1.14982437,1824.0,1823.8,0.87100523]
[1680365786806,1.14982437,1824.0,1823.8,1.87100523]
[1680365787402,1.14982437,1824.0,1823.8,0.87100523]
[1680365787897,1.14982437,1824.0,1823.8,0.815]
[1680365788301,1.14982437,1824.0,1823.9,0.04376052]
[1680365788607,1.14982437,1824.0,1823.8,1.815]
[1680365788904,1.14982437,1824.0,1823.8,0.815]
[1680365789305,1.14982437,1824.0,1823.8,1.815]
[1680365790305,0.86065392,1823.9,1823.8,1.815]
[1680365791204,0.86065392,1823.9,1823.8,1.85875251]
[1680365791517,0.86065392,1823.9,1823.8,2.68175251]
[1680365791815,0.86065392,1824.0,1823.8,8.70136973]
[1680365792014,0.86065392,1824.0,1823.9,4.0308]
[1680365792312,0.86065392,1824.0,1823.9,10.76855098]
[1680365792713,0.86065392,1824.1,1823.9,10.76855098]
[1680365792903,0.86065392,1824.1,1824.0,0.816]
[1680365793109,0.86065392,1824.1,1824.0,1.816]
[1680365793307,0.86065392,1824.1,1824.0,7.61843091]
[1680365794211,1.14982437,1824.1,1824.0,7.61843091]
[1680365795914,1.14982437,1824.1,1824.0,6.61843091]
[1680365797015,1.14982437,1824.1,1824.0,6.62543091]
[1680365804922,1.14982437,1824.1,1824.0,5.80243091]
[1680365805227,1.14815401,1824.1,1823.8,1.40787195]
[1680365805425,0.86112346,1823.9,1823.8,1.40787195]
[1680365805926,0.86112346,1823.9,1823.8,1.40583578]
[1680365806124,0.86112346,1823.9,1823.8,0.86471634]
[1680365807126,0.86112346,1823.9,1823.8,0.04171634]
[1680365807924,5.17595401,1823.9,1823.8,0.04171634]
[1680365808226,5.17595401,1823.9,1823.5,0.82]
[1680365808428,0.86120134,1823.7,1823.5,0.82]
[1680365809332,1.68320134,1823.6,1823.3,0.86025776]
[1680365809630,1.68420134,1823.4,1823.1,4.88405776]
[1680365810427,1.68420134,1823.4,1823.2,6.88690841]
[1680365810726,0.823,1823.4,1823.2,6.88690841]
[1680365811129,0.823,1823.4,1823.1,4.88405776]
[1680365811329,2.68420134,1823.4,1823.1,4.88405776]
[1680365811631,1.68420134,1823.4,1823.1,4.88405776]
[1680365811833,0.823,1823.4,1823.1,4.88405776]
[1680365812129,0.823,1823.4,1823.2,5.73383276]
[1680365812527,1.95420134,1823.5,1823.2,5.73383276]
[1680365812728,5.16200134,1823.5,1823.2,5.73383276]
[1680365814331,0.86120134,1823.4,1823.2,5.73383276]
[1680365814630,5.16200134,1823.5,1823.2,5.73383276]
[1680365815327,1.0,1823.4,1823.1,3.2078]
[1680365815534,1.86120134,1823.4,1823.0,1.94725776]
[1680365816623,1.0,1823.4,1823.0,2.94725776]
[1680365816824,1.0,1823.4,1823.0,1.94725776]
[1680365817020,2.096,1823.4,1823.0,0.86025776]
[1680365818736,2.096,1823.4,1822.9,6.15805776]
[1680365819033,1.096,1823.4,1823.0,1.0]
[1680365820235,1.096,1823.4,1822.9,6.15805776]
[1680365820429,1.096,1823.4,1823.0,1.0]
[1680365821335,2.096,1823.4,1822.9,6.15805776]
[1680365821532,2.096,1823.4,1822.9,5.15805776]
[1680365823531,1.096,1823.4,1823.0,1.0]
[1680365826928,1.096,1823.4,1823.0,2.09]
[1680365827133,1.096,1823.4,1823.0,1.09]
[1680365827330,1.096,1823.4,1823.0,2.09]
[1680365827936,1.096,1823.4,1823.1,1.0]
[1680365828337,1.096,1823.4,1823.1,4.2078]
[1680365829740,1.096,1823.4,1823.1,3.2078]
[1680365832544,3.2078,1823.5,1823.2,1.096]
[1680365832846,3.2078,1823.5,1823.2,2.096]
[1680365833148,3.2078,1823.5,1823.2,1.096]
[1680365834046,3.2078,1823.5,1823.2,2.096]
[1680365835449,3.2078,1823.5,1823.2,1.096]
[1680365837144,3.2078,1823.5,1823.1,4.3038]
[1680365844857,4.06900134,1823.5,1823.1,4.3038]
[1680365847058,4.06900134,1823.5,1823.2,2.09]
[1680365847258,4.06900134,1823.5,1823.2,1.09]
[1680365847657,4.06900134,1823.5,1823.2,2.09]
[1680365847965,0.86120134,1823.6,1823.4,1.096]
[1680365849355,6.79118124,1823.5,1823.1,3.2078]
[1680365849557,6.79118124,1823.5,1823.4,1.096]
[1680365849762,3.58338124,1823.5,1823.4,1.096]
[1680365850563,4.44458258,1823.5,1823.4,1.096]
[1680365852962,0.86120134,1823.5,1823.4,1.096]
[1680365853165,1.43604535,1823.5,1823.4,1.096]
[1680365853356,0.57484368,1823.5,1823.4,1.096]
[1680365853556,0.86120134,1823.5,1823.4,1.096]
[1680365855960,0.86120134,1823.5,1823.4,1.087]